Workbook

Sheet MSU
B1: Juha Tanska | E1: 29.10.1982
B2: SUPERPESIS | E2: Runkosarja | I2: Kärkilyönnit (KL), pesänvälit | P2: Ylempi loppusarja | W2: Alempi loppusarja | AD2: Arvo-ottelut | AH2: Mitalit
B3: Vuosi | C3: Sija | D3: Seura | E3: OTT | F3: KUN | G3: LÖI | H3: TOI | I3: KL | J3: 0 > 1 | K3: 1 > 2 | L3: 2 > 3 | M3: 3 > k | N3: KL-% | P3: OTT | Q3: KUN | R3: LÖI | S3: TOI | T3: KL | U3: KL-% | W3: OTT | X3: KUN | Y3: LÖI | Z3: TOI | AA3: KL | AB3: KL-% | AD3: IL | AE3: LL | AF3: hSM | AG3: K | AH3: H | AI3: P
B4: 2001 | C4: 14. | D4: HP | E4: 21 | F4: 0 | G4: 2 | H4: 0 | I4: 7 | J4: 2 | K4: 2 | L4: 1 | M4: 2 | N4: 18.9 % | W4: 6 | X4: 0 | Y4: 1 | Z4: 0 | AA4: 7 | AB4: 25.9 %
B5: 2002 | C5: 13. | D5: SuPo | F5: ykköspesis
B6: 2003 | C6: 13. | D6: SuPo | F6: ykköspesis
B7: 2004 | C7: 1. | D7: HaPe | F7: suomensarja
B8: 2005
B9: 2006
B10: 2007 | C10: 13. | D10: HaPe | F10: ykköspesis
B11: 2008 | C11: 6. | D11: HP | F11: suomensarja
B12: 2009 | C12: 1. | D12: HP | F12: suomensarja
B13: Yhteensä | E13: 21 | F13: 0 | G13: 2 | H13: 0 | I13: 7 | J13: 2 | K13: 2 | L13: 1 | M13: 2 | N13: 18.9 % | P13: 0 | Q13: 0 | R13: 0 | S13: 0 | T13: 0 | U13: 0.0 % | W13: =PRODUCT(E19) -> 6 | X13: =PRODUCT(F19) -> 0 | Y13: 1 | Z13: 0 | AA13: 7 | AB13: =PRODUCT(N19) -> 25.9 % | AD13: 0 | AE13: 0 | AF13: 0 | AG13: 0 | AH13: 0 | AI13: 0
B14: Pesispörssi | D14: 10.7
B16: URA SUPERISSA | E16: OTT | F16: KUN | G16: LÖI | H16: TOI | I16: KL | K16: ka/L | L16: ka/T | M16: ka/KL | N16: KL-% | P16: ENSIMMÄISET RUNKOSARJASSA
B17: Runkosarja | E17: 21 | F17: 0 | G17: 2 | H17: 0 | I17: 7 | K17: 0.10 | L17: 0.00 | M17: 0.33 | N17: 18.9 % | P17: Ottelu | R17: 16.06. 2001 KaMa - HP 2-1 (1-6, 2-0, 0-0, 2-1) | AA17: 1. ottelu | AE17: 18 v 7 kk 18 pv
B18: Ylempi loppusarja | E18: 0 | F18: 0 | G18: 0 | H18: 0 | I18: 0 | P18: Lyöty | R18: 28.06. 2001 LP - HP 0-2 (3-6, 1-3) | AA18: 3. ottelu | AE18: 18 v 7 kk 30 pv
B19: Alempi loppusarja | E19: 6 | F19: 0 | G19: 1 | H19: 0 | I19: 7 | K19: 0.17 | L19: 0.00 | M19: 1.17 | N19: 25.9 % | P19: Tuotu
B20: KAIKKI | E20: 27 | F20: 0 | G20: 3 | H20: 0 | I20: 14 | K20: 0.11 | L20: 0.00 | M20: 0.52 | N20: 21.9 % | P20: Kunnari
B22: Seurat | D22: HP = Haminan Palloilijat (1928), kasvattajaseura
D23: SuPo = Summan Ponnistus (1906)
D24: HaPe = Hamina Pesis (2003)

Sheet MYP, MSS
B1: Juha Tanska | E1: 29.10.1982
B2: YKKÖSPESIS | E2: Runkosarja | L2: Runkosarja TOP-10 | Q2: Jatkosarjat | X2: SUOMENSARJA | AA2: Runkosarja | AH2: Runkosarja TOP-10 | AM2: Jatkosarjat
B3: Vuosi | C3: Sija | D3: Seura | E3: OTT | F3: KUN | G3: LÖI | H3: TOI | I3: KL | J3: KL-% | L3: LÖI | M3: TOI | N3: L+T | O3: KL | Q3: OTT | R3: KUN | S3: LÖI | T3: TOI | U3: KL | V3: KL-% | X3: Vuosi | Y3: Sija | Z3: Seura | AA3: OTT | AB3: KUN | AC3: LÖI | AD3: TOI | AE3: KL | AF3: KL-% | AH3: LÖI | AI3: TOI | AJ3: L+T | AK3: KL | AM3: OTT | AN3: KUN | AO3: LÖI | AP3: TOI | AQ3: KL | AR3: KL-%
B4: 2002 | C4: 13. | D4: SuPo | E4: 21 | F4: 1 | G4: 7 | H4: 6 | I4: 36 | J4: 37.1 % | K4: 97 | Q4: 3 | R4: 0 | S4: 0 | T4: 2 | U4: 7 | V4: 63.6 % | W4: 11
B5: 2003 | C5: 13. | D5: SuPo | E5: 21 | F5: 0 | G5: 4 | H5: 2 | I5: 30 | J5: 35.7 % | K5: 84 | Q5: 2 | R5: 0 | S5: 0 | T5: 0 | U5: 2 | V5: 22.2 % | W5: 9
X6: 2004 | Y6: 1. | Z6: HaPe | AA6: 14 | AB6: 0 | AC6: 16 | AD6: 3 | AE6: 38 | AF6: 52.8 % | AG6: 72 | AM6: 4 | AN6: 0 | AO6: 3 | AP6: 0 | AQ6: 15 | AR6: 75.0 % | AS6: 20
B8: 2007 | C8: 13. | D8: HaPe | E8: 20 | F8: 2 | G8: 42 | H8: 5 | I8: 74 | J8: 47.1 % | K8: 157 | L8: 5. | N8: 5. | Q8: 2 | R8: 0 | S8: 6 | T8: 0 | U8: 9 | V8: 64.3 % | W8: 14
X9: 2008 | Y9: 6. | Z9: HP | AA9: 13 | AB9: 1 | AC9: 29 | AD9: 4 | AE9: 65 | AF9: 63.1 % | AG9: 103 | AH9: 4. | AJ9: 9.
X10: 2009 | Y10: 1. | Z10: HP | AA10: 17 | AB10: 2 | AC10: 29 | AD10: 14 | AE10: 62 | AF10: 51.7 % | AG10: 120 | AH10: 10. | AM10: 7 | AN10: 1 | AO10: 11 | AP10: 5 | AQ10: 30 | AR10: 50.0 % | AS10: 60
B11: YHTEENSÄ | E11: =SUM(E4:E10) -> 62 | F11: =SUM(F4:F10) -> 3 | G11: =SUM(G4:G10) -> 53 | H11: =SUM(H4:H10) -> 13 | I11: =SUM(I4:I10) -> 140 | J11: =PRODUCT(I11/K11) -> 41.4 % | K11: =SUM(K4:K10) -> 338 | Q11: =SUM(Q4:Q10) -> 7 | R11: =SUM(R4:R10) -> 0 | S11: =SUM(S4:S10) -> 6 | T11: =SUM(T4:T10) -> 2 | U11: =SUM(U4:U10) -> 18 | V11: =PRODUCT(U11/W11) -> 52.9 % | W11: =SUM(W4:W10) -> 34 | X11: YHTEENSÄ | AA11: =SUM(AA4:AA10) -> 44 | AB11: =SUM(AB4:AB10) -> 3 | AC11: =SUM(AC4:AC10) -> 74 | AD11: =SUM(AD4:AD10) -> 21 | AE11: =SUM(AE4:AE10) -> 165 | AF11: =PRODUCT(AE11/AG11) -> 55.9 % | AG11: =SUM(AG4:AG10) -> 295 | AM11: =SUM(AM4:AM10) -> 11 | AN11: =SUM(AN4:AN10) -> 1 | AO11: =SUM(AO4:AO10) -> 14 | AP11: =SUM(AP4:AP10) -> 5 | AQ11: =SUM(AQ4:AQ10) -> 45 | AR11: =PRODUCT(AQ11/AS11) -> 56.3 % | AS11: =SUM(AS4:AS10) -> 80
B13: KAIKKI OTTELUT | E13: OTT | F13: KUN | G13: LÖI | H13: TOI | I13: KL | J13: KL-% | L13: ka/L | M13: ka/T | N13: ka/l+t | O13: ka/kl | R13: Seurat | T13: HP = Haminan Palloilijat (1928), kasvattajaseura
B14: SUPERPESIS | E14: 27 | F14: 0 | G14: 3 | H14: 0 | I14: 14 | J14: 21.9 % | K14: =PRODUCT(I14/J14) -> 63.92694064 | L14: =PRODUCT((F14+G14)/E14) -> 0.11 | M14: =PRODUCT(H14/E14) -> 0.00 | N14: =PRODUCT((F14+G14+H14)/E14) -> 0.11 | O14: =PRODUCT(I14/E14) -> 0.52 | T14: SuPo = Summan Ponnistus (1906)
B15: YKKÖSPESIS | E15: =PRODUCT(E11+Q11) -> 69 | F15: =PRODUCT(F11+R11) -> 3 | G15: =PRODUCT(G11+S11) -> 59 | H15: =PRODUCT(H11+T11) -> 15 | I15: =PRODUCT(I11+U11) -> 158 | J15: =PRODUCT(I15/K15) -> 42.5 % | K15: =PRODUCT(K11+W11) -> 372 | L15: =PRODUCT((F15+G15)/E15) -> 0.90 | M15: =PRODUCT(H15/E15) -> 0.22 | N15: =PRODUCT((F15+G15+H15)/E15) -> 1.12 | O15: =PRODUCT(I15/E15) -> 2.29 | T15: HaPe = Hamina Pesis (2003)
B16: SUOMENSARJA | E16: =PRODUCT(AA11+AM11) -> 55 | F16: =PRODUCT(AB11+AN11) -> 4 | G16: =PRODUCT(AC11+AO11) -> 88 | H16: =PRODUCT(AD11+AP11) -> 26 | I16: =PRODUCT(AE11+AQ11) -> 210 | J16: =PRODUCT(I16/K16) -> 56.0 % | K16: =PRODUCT(AG11+AS11) -> 375 | L16: =PRODUCT((F16+G16)/E16) -> 1.67 | M16: =PRODUCT(H16/E16) -> 0.47 | N16: =PRODUCT((F16+G16+H16)/E16) -> 2.15 | O16: =PRODUCT(I16/E16) -> 3.82
B17: YHTEENSÄ | E17: =SUM(E14:E16) -> 151 | F17: =SUM(F14:F16) -> 7 | G17: 150 | H17: 41 | I17: 382 | J17: =PRODUCT(I17/K17) -> 47.1 % | K17: =SUM(K14:K16) -> 810.9269406 | L17: =PRODUCT((F17+G17)/E17) -> 1.04 | M17: =PRODUCT(H17/E17) -> 0.27 | N17: =PRODUCT((F17+G17+H17)/E17) -> 1.31 | O17: =PRODUCT(I17/E17) -> 2.53
